[Event "2026 Biel Blitz Open"]
[Site "Biel, CH"]
[Date "2026.07.19"]
[Round "7"]
[White "Matsumura, Cocoro"]
[Black "Python, Noe"]
[Result "1-0"]
[Board "20"]
[TimeControl "180+2"]
[WhiteFideId "36087114"]
[BlackFideId "1337637"]
[WhiteElo "2131"]
[BlackElo "2010"]
[WhiteTitle "CM"]
[WhiteClock "0:00:20"]
[BlackClock "0:00:41"]
[Variant "Standard"]
[EndDate "2026.07.19"]
[EndTime "14:07:05"]

1. e4 {[%clk 0:03:03]}  c6 {[%clk 0:03:03]} 2. d4 {[%clk 0:03:04]}  d5 {[%clk 0:03:05]} 3. e5 {[%clk 0:03:05]}  c5 {[%clk 0:03:07]}
4. dxc5 {[%clk 0:03:06]}  e6 {[%clk 0:03:08]} 5. c3 {[%clk 0:03:07]}  Bxc5 {[%clk 0:03:05]} 6. Qg4 {[%clk 0:03:08]}  g6 {[%clk 0:03:01]}
7. h4 {[%clk 0:03:10]}  h5 {[%clk 0:03:00]} 8. Qg3 {[%clk 0:03:03]}  Nh6 {[%clk 0:02:55]} 9. Bg5 {[%clk 0:03:05]}  Be7 {[%clk 0:02:55]}
10. Bd3 {[%clk 0:03:04]}  Nc6 {[%clk 0:02:50]} 11. Nf3 {[%clk 0:03:02]}  Bd7 {[%clk 0:02:24]} 12. Nbd2 {[%clk 0:03:03]}  Nf5 {[%clk 0:02:21]}
13. Bxf5 {[%clk 0:03:03]}  gxf5 {[%clk 0:02:18]} 14. Qf4 {[%clk 0:03:01]}  Qc7 {[%clk 0:02:13]} 15. O-O-O {[%clk 0:02:55]}  f6 {[%clk 0:02:13]}
16. exf6 {[%clk 0:02:48]}  Qxf4 {[%clk 0:02:13]} 17. f7+ {[%clk 0:02:41]}  Kxf7 {[%clk 0:02:13]} 18. Bxf4 {[%clk 0:02:42]}  Bf6 {[%clk 0:02:06]}
19. Rhe1 {[%clk 0:02:43]}  Rhe8 {[%clk 0:02:00]} 20. Nb3 {[%clk 0:02:20]}  b6 {[%clk 0:01:38]} 21. Bg3 {[%clk 0:01:58]}  Rg8 {[%clk 0:01:28]}
22. Rg1 {[%clk 0:01:47]}  Rg4 {[%clk 0:01:29]} 23. Nh2 {[%clk 0:01:42]}  Ra4 {[%clk 0:01:24]} 24. Nf3 {[%clk 0:01:35]}  Rxa2 {[%clk 0:01:12]}
25. Rge1 {[%clk 0:01:23]}  Rg8 {[%clk 0:00:58]} 26. Re2 {[%clk 0:01:09]}  Ra4 {[%clk 0:00:59]} 27. Rg1 {[%clk 0:00:46]}  Rag4 {[%clk 0:00:59]}
28. Nh2 {[%clk 0:00:43]}  Rc4 {[%clk 0:00:54]} 29. Nd2 {[%clk 0:00:42]}  Ra4 {[%clk 0:00:50]} 30. Nhf3 {[%clk 0:00:25]}  Ra1+ {[%clk 0:00:44]}
31. Nb1 {[%clk 0:00:25]}  Rc8 {[%clk 0:00:41]} 32. Nfd2 {[%clk 0:00:22]}  b5 {[%clk 0:00:15]} 33. Nb3 {[%clk 0:00:15]}  Ra4 {[%clk 0:00:14]}
34. Rge1 {[%clk 0:00:13]}  Bxh4 {[%clk 0:00:14]} 35. Nc5 {[%clk 0:00:12]}  Bxg3 {[%clk 0:00:13]} 36. fxg3 {[%clk 0:00:13]}  Ke7 {[%clk 0:00:04]}
37. Nxa4 {[%clk 0:00:11]}  bxa4 {[%clk 0:00:06]} 38. Na3 {[%clk 0:00:12]}  Nb4 {[%clk 0:00:06]} 39. Kd2 {[%clk 0:00:11]}  Nc6 {[%clk 0:00:07]}
40. Nb5 {[%clk 0:00:11]}  a6 {[%clk 0:00:08]} 41. Na3 {[%clk 0:00:11]}  e5 {[%clk 0:00:09]} 42. Nc2 {[%clk 0:00:11]}  Kf6 {[%clk 0:00:09]}
43. Ne3 {[%clk 0:00:11]}  Be6 {[%clk 0:00:08]} 44. Rh1 {[%clk 0:00:12]}  Kg5 {[%clk 0:00:06]} 45. Nc2 {[%clk 0:00:11]}  Na5 {[%clk 0:00:06]}
46. Kc1 {[%clk 0:00:09]}  Nc4 {[%clk 0:00:06]} 47. Nd4 {[%clk 0:00:07]}  exd4 {[%clk 0:00:04]} 48. Rxe6 {[%clk 0:00:08]}  dxc3 {[%clk 0:00:04]}
49. bxc3 {[%clk 0:00:09]}  Na3 {[%clk 0:00:04]} 50. Rxa6 {[%clk 0:00:09]}  Rxc3+ {[%clk 0:00:06]} 51. Kb2 {[%clk 0:00:10]}  Rxg3 {[%clk 0:00:06]}
52. Rxa4 {[%clk 0:00:10]}  Nc4+ {[%clk 0:00:07]} 53. Kc2 {[%clk 0:00:08]}  Rxg2+ {[%clk 0:01:07]} 54. Kc3 {[%clk 0:00:10]}  h4 {[%clk 0:01:04]}
55. Kd4 {[%clk 0:00:11]}  Rd2+ {[%clk 0:01:04]} 56. Kc3 {[%clk 0:00:11]}  Rg2 {[%clk 0:01:03]} 57. Ra8 {[%clk 0:00:11]}  Rg4 {[%clk 0:01:03]}
58. Rg8+ {[%clk 0:00:11]}  Kf4 {[%clk 0:01:04]} 59. Rf8 {[%clk 0:00:11]}  Rg3+ {[%clk 0:01:04]} 60. Kd4 {[%clk 0:00:12]}  h3 {[%clk 0:01:03]}
61. Kxd5 {[%clk 0:00:13]}  Ne3+ {[%clk 0:01:05]} 62. Kd4 {[%clk 0:00:13]}  Ng4 {[%clk 0:01:05]} 63. Rf1 {[%clk 0:00:12]}  Kg5 {[%clk 0:00:56]}
64. R8xf5+ {[%clk 0:00:13]}  Kh4 {[%clk 0:00:57]} 65. Rf8 {[%clk 0:00:14]}  Nh6 {[%clk 0:00:55]} 66. Rh8 {[%clk 0:00:14]}  Kh5 {[%clk 0:00:55]}
67. Rf6 {[%clk 0:00:14]}  Rg6 {[%clk 0:00:42]} 68. Rxg6 {[%clk 0:00:09]}  Kxg6 {[%clk 0:00:43]} 69. Ra8 {[%clk 0:00:11]}  Ng4 {[%clk 0:00:33]}
70. Ra1 {[%clk 0:00:08]}  Nf2 {[%clk 0:00:31]} 71. Ke3 {[%clk 0:00:09]}  Ng4+ {[%clk 0:00:31]} 72. Kf4 {[%clk 0:00:10]}  Nf6 {[%clk 0:00:31]}
73. Kg3 {[%clk 0:00:11]}  Ne4+ {[%clk 0:00:31]} 74. Kxh3 {[%clk 0:00:12]}  Kf5 {[%clk 0:00:33]} 75. Kg2 {[%clk 0:00:13]}  Ke5 {[%clk 0:00:35]}
76. Ra5+ {[%clk 0:00:14]}  Kd4 {[%clk 0:00:36]} 77. Kf3 {[%clk 0:00:15]}  Nd2+ {[%clk 0:00:37]} 78. Kf4 {[%clk 0:00:16]}  Nc4 {[%clk 0:00:39]}
79. Ra4 {[%clk 0:00:17]}  Kd5 {[%clk 0:00:39]} 80. Ra1 {[%clk 0:00:18]}  Kd4 {[%clk 0:00:40]} 81. Rd1+ {[%clk 0:00:18]}  Kc3 {[%clk 0:00:42]}
82. Ke4 {[%clk 0:00:19]}  Nd6+ {[%clk 0:00:41]} 83. Rxd6 {[%clk 0:00:20]} 1-0

[Event "2026 Biel Blitz Open"]
[Site "Biel, CH"]
[Date "2026.07.19"]
[Round "7"]
[White "Clausen, Martin"]
[Black "Hakimifard, Ghazal"]
[Result "1/2-1/2"]
[Board "21"]
[TimeControl "180+2"]
[WhiteFideId "1314882"]
[BlackFideId "12506540"]
[WhiteElo "1956"]
[BlackElo "2130"]
[BlackTitle "WGM"]
[WhiteClock "0:00:14"]
[BlackClock "0:00:11"]
[Variant "Standard"]
[EndDate "2026.07.19"]
[EndTime "14:07:14"]

1. e4 {[%clk 0:03:01]}  c5 {[%clk 0:03:04]} 2. a3 {[%clk 0:03:02]}  e6 {[%clk 0:03:01]} 3. b4 {[%clk 0:03:02]}  cxb4 {[%clk 0:03:00]}
4. axb4 {[%clk 0:03:03]}  Bxb4 {[%clk 0:03:00]} 5. Bb2 {[%clk 0:03:03]}  Nf6 {[%clk 0:02:58]} 6. e5 {[%clk 0:03:04]}  Nd5 {[%clk 0:02:44]}
7. c4 {[%clk 0:03:04]}  Nc7 {[%clk 0:02:45]} 8. Qg4 {[%clk 0:03:04]}  O-O {[%clk 0:02:35]} 9. Nf3 {[%clk 0:03:02]}  Nc6 {[%clk 0:02:31]}
10. Bd3 {[%clk 0:03:02]}  Be7 {[%clk 0:02:21]} 11. Nc3 {[%clk 0:02:14]}  Nb4 {[%clk 0:02:20]} 12. Bb1 {[%clk 0:02:10]}  f5 {[%clk 0:02:09]}
13. exf6 {[%clk 0:01:44]}  Bxf6 {[%clk 0:02:10]} 14. O-O {[%clk 0:01:44]}  Qe7 {[%clk 0:01:53]} 15. c5 {[%clk 0:01:30]}  Nbd5 {[%clk 0:01:50]}
16. d4 {[%clk 0:01:11]}  Nxc3 {[%clk 0:01:49]} 17. Bxc3 {[%clk 0:01:12]}  Nd5 {[%clk 0:01:50]} 18. Bb2 {[%clk 0:01:12]}  Rb8 {[%clk 0:01:31]}
19. Re1 {[%clk 0:01:12]}  b6 {[%clk 0:01:29]} 20. cxb6 {[%clk 0:01:02]}  Rxb6 {[%clk 0:01:28]} 21. Ba3 {[%clk 0:01:02]}  d6 {[%clk 0:01:28]}
22. Be4 {[%clk 0:00:49]}  Qf7 {[%clk 0:01:12]} 23. Rec1 {[%clk 0:00:43]}  Bb7 {[%clk 0:01:04]} 24. Bxd6 {[%clk 0:00:37]}  Rxd6 {[%clk 0:01:02]}
25. Rxa7 {[%clk 0:00:38]}  Rd7 {[%clk 0:00:58]} 26. h4 {[%clk 0:00:30]}  Bc8 {[%clk 0:00:53]} 27. Ra8 {[%clk 0:00:31]}  Rc7 {[%clk 0:00:49]}
28. Rca1 {[%clk 0:00:28]}  Be7 {[%clk 0:00:34]} 29. Qg3 {[%clk 0:00:25]}  Qf4 {[%clk 0:00:29]} 30. Ne5 {[%clk 0:00:18]}  Qxg3 {[%clk 0:00:29]}
31. fxg3 {[%clk 0:00:19]}  Bb7 {[%clk 0:00:25]} 32. R8a7 {[%clk 0:00:20]}  Rfc8 {[%clk 0:00:20]} 33. Kh2 {[%clk 0:00:21]}  Bc6 {[%clk 0:00:14]}
34. R7a6 {[%clk 0:00:12]}  Bf6 {[%clk 0:00:08]} 35. R1a5 {[%clk 0:00:15]}  Bxe5 {[%clk 0:00:09]} 36. dxe5 {[%clk 0:00:16]}  Ne7 {[%clk 0:00:10]}
37. Bd3 {[%clk 0:00:14]}  Bd5 {[%clk 0:00:11]} 38. Be2 {[%clk 0:00:14]} 1/2-1/2

[Event "2026 Biel Blitz Open"]
[Site "Biel, CH"]
[Date "2026.07.19"]
[Round "7"]
[White "Erne, Raphael"]
[Black "Alexakis, Dimitrios"]
[Result "1-0"]
[Board "22"]
[TimeControl "180+2"]
[WhiteFideId "1341928"]
[BlackFideId "4200527"]
[WhiteElo "2128"]
[BlackElo "1895"]
[WhiteClock "0:00:09"]
[BlackClock "0:00:07"]
[Variant "Standard"]
[EndDate "2026.07.19"]
[EndTime "14:02:07"]

1. c4 {[%clk 0:03:03]}  e5 {[%clk 0:03:01]} 2. g3 {[%clk 0:03:03]}  Nf6 {[%clk 0:03:01]} 3. Bg2 {[%clk 0:03:04]}  d5 {[%clk 0:03:01]}
4. cxd5 {[%clk 0:03:04]}  Nxd5 {[%clk 0:03:01]} 5. Nf3 {[%clk 0:03:05]}  Nc6 {[%clk 0:03:02]} 6. O-O {[%clk 0:03:05]}  Be7 {[%clk 0:03:02]}
7. d4 {[%clk 0:03:06]}  exd4 {[%clk 0:02:56]} 8. Nxd4 {[%clk 0:03:06]}  Nxd4 {[%clk 0:02:38]} 9. Qxd4 {[%clk 0:03:07]}  Nf6 {[%clk 0:02:38]}
10. Qa4+ {[%clk 0:03:08]}  c6 {[%clk 0:02:36]} 11. Rd1 {[%clk 0:03:10]}  Qb6 {[%clk 0:02:31]} 12. Be3 {[%clk 0:03:11]}  Qc7 {[%clk 0:02:30]}
13. Nc3 {[%clk 0:03:04]}  O-O {[%clk 0:02:30]} 14. Rac1 {[%clk 0:03:04]}  Be6 {[%clk 0:02:08]} 15. Qc2 {[%clk 0:02:09]}  a6 {[%clk 0:01:56]}
16. Na4 {[%clk 0:02:03]}  b5 {[%clk 0:01:39]} 17. Nb6 {[%clk 0:01:46]}  Rad8 {[%clk 0:00:45]} 18. Qxc6 {[%clk 0:01:19]}  Qxc6 {[%clk 0:00:40]}
19. Bxc6 {[%clk 0:01:19]}  Bxa2 {[%clk 0:00:24]} 20. Rxd8 {[%clk 0:01:14]}  Rxd8 {[%clk 0:00:25]} 21. Ra1 {[%clk 0:01:15]}  Bc4 {[%clk 0:00:12]}
22. Nxc4 {[%clk 0:00:45]}  bxc4 {[%clk 0:00:13]} 23. Rxa6 {[%clk 0:00:46]}  Ng4 {[%clk 0:00:14]} 24. Bf4 {[%clk 0:00:36]}  Bc5 {[%clk 0:00:14]}
25. e3 {[%clk 0:00:25]}  h6 {[%clk 0:00:07]} 26. h3 {[%clk 0:00:26]}  Nf6 {[%clk 0:00:06]} 27. Be5 {[%clk 0:00:14]}  Rd1+ {[%clk 0:00:07]}
28. Kg2 {[%clk 0:00:15]}  Rd2 {[%clk 0:00:08]} 29. Ra8+ {[%clk 0:00:09]}  Kh7 {[%clk 0:00:09]} 30. Kf3 {[%clk 0:00:10]}  Kg6 {[%clk 0:00:07]}
31. h4 {[%clk 0:00:09]}  h5 {[%clk 0:00:08]} 32. Rc8 {[%clk 0:00:08]}  Rxb2 {[%clk 0:00:07]} 33. Bxb2 {[%clk 0:00:09]} 1-0

[Event "2026 Biel Blitz Open"]
[Site "Biel, CH"]
[Date "2026.07.19"]
[Round "7"]
[White "Ashwath Kaushik"]
[Black "Hajduk, Tomasz"]
[Result "1-0"]
[Board "23"]
[TimeControl "180+2"]
[WhiteFideId "33387230"]
[BlackFideId "21811415"]
[WhiteElo "2122"]
[BlackElo "1791"]
[WhiteTitle "FM"]
[WhiteClock "0:01:11"]
[BlackClock "0:00:16"]
[Variant "Standard"]
[EndDate "2026.07.19"]
[EndTime "13:57:28"]

1. e4 {[%clk 0:03:03]}  c5 {[%clk 0:03:03]} 2. Nf3 {[%clk 0:03:04]}  d6 {[%clk 0:03:04]} 3. d4 {[%clk 0:03:05]}  cxd4 {[%clk 0:03:05]}
4. Nxd4 {[%clk 0:03:06]}  Nf6 {[%clk 0:03:06]} 5. Nc3 {[%clk 0:03:06]}  a6 {[%clk 0:03:08]} 6. Nb3 {[%clk 0:03:07]}  e5 {[%clk 0:03:07]}
7. Bg5 {[%clk 0:03:08]}  Be7 {[%clk 0:03:08]} 8. Bxf6 {[%clk 0:03:09]}  Bxf6 {[%clk 0:03:08]} 9. Nd5 {[%clk 0:03:09]}  Be6 {[%clk 0:03:05]}
10. Qd3 {[%clk 0:03:10]}  Nd7 {[%clk 0:03:04]} 11. O-O-O {[%clk 0:03:09]}  O-O {[%clk 0:03:03]} 12. f3 {[%clk 0:03:10]}  Rc8 {[%clk 0:03:01]}
13. Nxf6+ {[%clk 0:03:07]}  Qxf6 {[%clk 0:03:02]} 14. Qxd6 {[%clk 0:02:54]}  Rfd8 {[%clk 0:02:59]} 15. Qb4 {[%clk 0:02:46]}  b5 {[%clk 0:02:25]}
16. Bd3 {[%clk 0:02:36]}  Nb6 {[%clk 0:02:21]} 17. Kb1 {[%clk 0:02:32]}  h6 {[%clk 0:02:08]} 18. h4 {[%clk 0:02:22]}  Nc4 {[%clk 0:02:05]}
19. Bxc4 {[%clk 0:02:19]}  bxc4 {[%clk 0:02:02]} 20. Nc5 {[%clk 0:02:16]}  Rb8 {[%clk 0:01:49]} 21. Qc3 {[%clk 0:02:12]}  Rd4 {[%clk 0:01:43]}
22. Nxe6 {[%clk 0:02:09]}  Qxe6 {[%clk 0:01:44]} 23. Rxd4 {[%clk 0:02:08]}  exd4 {[%clk 0:01:34]} 24. Qxd4 {[%clk 0:02:08]}  a5 {[%clk 0:01:28]}
25. Qc3 {[%clk 0:02:00]}  a4 {[%clk 0:01:25]} 26. a3 {[%clk 0:02:01]}  Qg6 {[%clk 0:00:53]} 27. g4 {[%clk 0:01:55]}  Qc6 {[%clk 0:00:52]}
28. Rd1 {[%clk 0:01:53]}  Qc5 {[%clk 0:00:46]} 29. Rd4 {[%clk 0:01:50]}  Qb6 {[%clk 0:00:32]} 30. Rxc4 {[%clk 0:01:46]}  Qg1+ {[%clk 0:00:21]}
31. Ka2 {[%clk 0:01:47]}  Qf2 {[%clk 0:00:21]} 32. Rxa4 {[%clk 0:01:34]}  Qxh4 {[%clk 0:00:21]} 33. Rb4 {[%clk 0:01:28]}  Rd8 {[%clk 0:00:22]}
34. Rc4 {[%clk 0:01:29]}  Qe7 {[%clk 0:00:21]} 35. b3 {[%clk 0:01:20]}  g6 {[%clk 0:00:22]} 36. Rc8 {[%clk 0:01:17]}  h5 {[%clk 0:00:21]}
37. gxh5 {[%clk 0:01:13]}  gxh5 {[%clk 0:00:22]} 38. Rc5 {[%clk 0:01:12]}  h4 {[%clk 0:00:19]} 39. Rh5 {[%clk 0:01:12]}  Ra8 {[%clk 0:00:16]}
40. Rh8# {[%clk 0:01:11]} 1-0

[Event "2026 Biel Blitz Open"]
[Site "Biel, CH"]
[Date "2026.07.19"]
[Round "7"]
[White "Habibi, Ali"]
[Black "Chu, Wa Ching David"]
[Result "1-0"]
[Board "24"]
[TimeControl "180+2"]
[WhiteFideId "4604393"]
[BlackFideId "6013180"]
[WhiteElo "2116"]
[BlackElo "1673"]
[WhiteTitle "IM"]
[WhiteClock "0:01:27"]
[BlackClock "0:03:07"]
[Variant "Standard"]
[EndDate "2026.07.19"]
[EndTime "14:07:00"]

1. Nf3 {[%clk 0:03:03]}  d5 {[%clk 0:03:03]} 2. g3 {[%clk 0:03:04]}  Nf6 {[%clk 0:03:03]} 3. Bg2 {[%clk 0:03:05]}  e6 {[%clk 0:03:04]}
4. O-O {[%clk 0:03:06]}  Be7 {[%clk 0:03:06]} 5. d3 {[%clk 0:03:05]}  O-O {[%clk 0:03:06]} 6. Nbd2 {[%clk 0:03:06]}  c5 {[%clk 0:03:07]}
7. Qe1 {[%clk 0:03:06]}  Nc6 {[%clk 0:03:06]} 8. a3 {[%clk 0:03:05]}  b5 {[%clk 0:03:07]} 9. e4 {[%clk 0:03:06]}  Bb7 {[%clk 0:03:07]}
10. Qe2 {[%clk 0:03:02]}  a6 {[%clk 0:02:59]} 11. Ne1 {[%clk 0:01:27]}  a5 {[%clk 0:03:07]} 1-0

[Event "2026 Biel Blitz Open"]
[Site "Biel, CH"]
[Date "2026.07.19"]
[Round "7"]
[White "Wilhelm, Serge"]
[Black "Kolly, Jacques"]
[Result "0-1"]
[Board "25"]
[TimeControl "180+2"]
[WhiteFideId "1305808"]
[BlackFideId "1302183"]
[WhiteElo "1923"]
[BlackElo "2203"]
[BlackTitle "FM"]
[WhiteClock "0:00:07"]
[BlackClock "0:00:11"]
[Variant "Standard"]
[EndDate "2026.07.19"]
[EndTime "14:06:34"]

1. Nf3 {[%clk 0:03:03]}  e6 {[%clk 0:03:03]} 2. g3 {[%clk 0:03:03]}  d5 {[%clk 0:03:04]} 3. d3 {[%clk 0:03:04]}  c5 {[%clk 0:03:05]}
4. Bg2 {[%clk 0:03:05]}  Nc6 {[%clk 0:03:06]} 5. Nbd2 {[%clk 0:03:05]}  b6 {[%clk 0:03:04]} 6. O-O {[%clk 0:03:05]}  Bb7 {[%clk 0:03:06]}
7. e4 {[%clk 0:03:05]}  Nf6 {[%clk 0:03:06]} 8. Re1 {[%clk 0:02:59]}  Be7 {[%clk 0:03:07]} 9. c3 {[%clk 0:02:46]}  dxe4 {[%clk 0:02:50]}
10. dxe4 {[%clk 0:02:47]}  O-O {[%clk 0:02:49]} 11. e5 {[%clk 0:02:32]}  Nd5 {[%clk 0:02:41]} 12. Nc4 {[%clk 0:02:17]}  Ba6 {[%clk 0:02:34]}
13. Ne3 {[%clk 0:02:15]}  Nxe3 {[%clk 0:02:32]} 14. Bxe3 {[%clk 0:02:16]}  Qc7 {[%clk 0:02:33]} 15. Qc2 {[%clk 0:01:57]}  Rad8 {[%clk 0:02:32]}
16. Rad1 {[%clk 0:01:47]}  Bb7 {[%clk 0:02:31]} 17. Bg5 {[%clk 0:01:27]}  h6 {[%clk 0:02:26]} 18. Bxe7 {[%clk 0:01:27]}  Nxe7 {[%clk 0:02:26]}
19. Qe2 {[%clk 0:01:23]}  Rxd1 {[%clk 0:02:15]} 20. Rxd1 {[%clk 0:01:24]}  Rd8 {[%clk 0:02:17]} 21. Rd2 {[%clk 0:01:16]}  Rd5 {[%clk 0:01:52]}
22. Rxd5 {[%clk 0:01:10]}  Bxd5 {[%clk 0:01:50]} 23. a3 {[%clk 0:01:02]}  Qb7 {[%clk 0:01:40]} 24. Nh4 {[%clk 0:01:01]}  Qc7 {[%clk 0:01:06]}
25. f4 {[%clk 0:00:55]}  Qc6 {[%clk 0:01:02]} 26. Qd2 {[%clk 0:00:48]}  b5 {[%clk 0:00:52]} 27. Kf2 {[%clk 0:00:39]}  c4 {[%clk 0:00:43]}
28. Qd4 {[%clk 0:00:34]}  a6 {[%clk 0:00:32]} 29. g4 {[%clk 0:00:24]}  Bxg2 {[%clk 0:00:31]} 30. Nxg2 {[%clk 0:00:25]}  Nd5 {[%clk 0:00:29]}
31. h3 {[%clk 0:00:14]}  g6 {[%clk 0:00:31]} 32. Ne3 {[%clk 0:00:15]}  Nxe3 {[%clk 0:00:24]} 33. Qxe3 {[%clk 0:00:15]}  Qh1 {[%clk 0:00:19]}
34. Qf3 {[%clk 0:00:08]}  Qh2+ {[%clk 0:00:20]} 35. Qg2 {[%clk 0:00:09]}  Qxf4+ {[%clk 0:00:20]} 36. Qf3 {[%clk 0:00:08]}  Qxe5 {[%clk 0:00:19]}
37. Qa8+ {[%clk 0:00:09]}  Kg7 {[%clk 0:00:17]} 38. Qxa6 {[%clk 0:00:10]}  Qd5 {[%clk 0:00:15]} 39. Qa7 {[%clk 0:00:09]}  e5 {[%clk 0:00:08]}
40. Qe3 {[%clk 0:00:08]}  e4 {[%clk 0:00:06]} 41. Kg3 {[%clk 0:00:09]}  Qd3 {[%clk 0:00:07]} 42. Kf4 {[%clk 0:00:10]}  Qxe3+ {[%clk 0:00:07]}
43. Kxe3 {[%clk 0:00:11]}  f5 {[%clk 0:00:08]} 44. gxf5 {[%clk 0:00:11]}  gxf5 {[%clk 0:00:09]} 45. Kd2 {[%clk 0:00:06]}  Kf6 {[%clk 0:00:11]}
46. Kc2 {[%clk 0:00:05]}  Ke5 {[%clk 0:00:12]} 47. b3 {[%clk 0:00:06]}  cxb3+ {[%clk 0:00:10]} 48. Kxb3 {[%clk 0:00:07]}  e3 {[%clk 0:00:11]} 0-1

[Event "2026 Biel Blitz Open"]
[Site "Biel, CH"]
[Date "2026.07.19"]
[Round "7"]
[White "Maruntis, Patrik-Robert"]
[Black "Jud, Marc"]
[Result "1-0"]
[Board "26"]
[TimeControl "180+2"]
[WhiteFideId "1259997"]
[BlackFideId "1309099"]
[WhiteElo "2167"]
[BlackElo "1946"]
[WhiteClock "0:00:05"]
[BlackClock "0:00:10"]
[Variant "Standard"]
[EndDate "2026.07.19"]
[EndTime "14:06:23"]

1. c4 {[%clk 0:02:58]}  e6 {[%clk 0:03:02]} 2. e3 {[%clk 0:02:58]}  d5 {[%clk 0:02:58]} 3. Nf3 {[%clk 0:02:56]}  c5 {[%clk 0:03:03]}
4. cxd5 {[%clk 0:02:55]}  exd5 {[%clk 0:03:03]} 5. Bb5+ {[%clk 0:02:56]}  Bd7 {[%clk 0:03:02]} 6. Qe2 {[%clk 0:02:57]}  a6 {[%clk 0:03:02]}
7. Bxd7+ {[%clk 0:02:57]}  Nxd7 {[%clk 0:03:01]} 8. O-O {[%clk 0:02:54]}  Ngf6 {[%clk 0:03:01]} 9. b3 {[%clk 0:02:55]}  Bd6 {[%clk 0:02:57]}
10. Bb2 {[%clk 0:02:56]}  O-O {[%clk 0:02:57]} 11. d4 {[%clk 0:02:54]}  cxd4 {[%clk 0:02:53]} 12. Bxd4 {[%clk 0:02:53]}  Re8 {[%clk 0:02:48]}
13. Nc3 {[%clk 0:02:49]}  Ne4 {[%clk 0:02:38]} 14. Nxd5 {[%clk 0:02:30]}  Ndf6 {[%clk 0:02:12]} 15. Nxf6+ {[%clk 0:02:29]}  Nxf6 {[%clk 0:02:13]}
16. h3 {[%clk 0:02:24]}  Qe7 {[%clk 0:02:07]} 17. Rfd1 {[%clk 0:02:23]}  Rac8 {[%clk 0:02:04]} 18. Rac1 {[%clk 0:02:23]}  Ba3 {[%clk 0:02:00]}
19. Bb2 {[%clk 0:02:20]}  Bxb2 {[%clk 0:01:47]} 20. Qxb2 {[%clk 0:02:20]}  Ne4 {[%clk 0:01:43]} 21. Rxc8 {[%clk 0:02:11]}  Rxc8 {[%clk 0:01:44]}
22. Qe5 {[%clk 0:02:12]}  Qxe5 {[%clk 0:01:33]} 23. Nxe5 {[%clk 0:02:12]}  f6 {[%clk 0:01:30]} 24. Nf3 {[%clk 0:00:51]}  h6 {[%clk 0:01:21]}
25. Nd4 {[%clk 0:00:49]}  a5 {[%clk 0:00:42]} 26. f3 {[%clk 0:00:48]}  Nd6 {[%clk 0:00:42]} 27. Ne6 {[%clk 0:00:39]}  Nb5 {[%clk 0:00:22]}
28. Rd7 {[%clk 0:00:23]}  Kh8 {[%clk 0:00:20]} 29. Nxg7 {[%clk 0:00:17]}  Nc3 {[%clk 0:00:11]} 30. Nh5 {[%clk 0:00:15]}  Rf8 {[%clk 0:00:10]}
31. a4 {[%clk 0:00:11]}  Na2 {[%clk 0:00:09]} 32. Kh2 {[%clk 0:00:08]}  b6 {[%clk 0:00:08]} 33. Kg3 {[%clk 0:00:08]}  Nc1 {[%clk 0:00:08]}
34. Kf4 {[%clk 0:00:04]}  Nxb3 {[%clk 0:00:09]} 35. Kf5 {[%clk 0:00:05]}  Nc5 {[%clk 0:00:10]} 36. Ra7 {[%clk 0:00:05]}  Nxa4 {[%clk 0:00:10]}
37. Nxf6 {[%clk 0:00:05]} 1-0

[Event "2026 Biel Blitz Open"]
[Site "Biel, CH"]
[Date "2026.07.19"]
[Round "7"]
[White "Tkhoruk, Roman"]
[Black "Harish, Neeraj"]
[Result "0-1"]
[Board "28"]
[TimeControl "180+2"]
[WhiteFideId "34161589"]
[BlackFideId "30958130"]
[WhiteElo "2055"]
[BlackElo "1920"]
[BlackTitle "CM"]
[WhiteClock "0:00:08"]
[BlackClock "0:00:32"]
[Variant "Standard"]
[EndDate "2026.07.19"]
[EndTime "14:05:57"]

1. e4 {[%clk 0:03:03]}  e5 {[%clk 0:03:03]} 2. Nf3 {[%clk 0:03:03]}  Nc6 {[%clk 0:03:04]} 3. Bc4 {[%clk 0:03:04]}  Nf6 {[%clk 0:03:05]}
4. Ng5 {[%clk 0:03:00]}  d5 {[%clk 0:03:06]} 5. exd5 {[%clk 0:03:01]}  Na5 {[%clk 0:03:08]} 6. Bb5+ {[%clk 0:03:02]}  Bd7 {[%clk 0:03:09]}
7. Bxd7+ {[%clk 0:03:01]}  Qxd7 {[%clk 0:03:10]} 8. d3 {[%clk 0:02:57]}  Nxd5 {[%clk 0:03:08]} 9. O-O {[%clk 0:02:53]}  Be7 {[%clk 0:03:08]}
10. Ne4 {[%clk 0:02:49]}  O-O-O {[%clk 0:03:02]} 11. Bd2 {[%clk 0:02:45]}  Nc6 {[%clk 0:03:03]} 12. a3 {[%clk 0:02:41]}  f5 {[%clk 0:03:04]}
13. Nec3 {[%clk 0:02:41]}  Nf6 {[%clk 0:03:00]} 14. b4 {[%clk 0:02:39]}  h5 {[%clk 0:02:48]} 15. b5 {[%clk 0:02:36]}  Nd4 {[%clk 0:02:49]}
16. a4 {[%clk 0:02:35]}  h4 {[%clk 0:02:48]} 17. h3 {[%clk 0:02:31]}  g5 {[%clk 0:02:48]} 18. Bxg5 {[%clk 0:02:31]}  Rdg8 {[%clk 0:02:49]}
19. Bxf6 {[%clk 0:02:24]}  Bxf6 {[%clk 0:02:49]} 20. Kh1 {[%clk 0:02:23]}  Rg6 {[%clk 0:02:30]} 21. Nd2 {[%clk 0:02:18]}  Rhg8 {[%clk 0:02:28]}
22. Rg1 {[%clk 0:02:19]}  Qg7 {[%clk 0:02:28]} 23. Qf1 {[%clk 0:02:17]}  Bg5 {[%clk 0:02:12]} 24. Nc4 {[%clk 0:02:06]}  Bf4 {[%clk 0:02:13]}
25. Nd5 {[%clk 0:01:53]}  Qf8 {[%clk 0:01:31]} 26. Nxf4 {[%clk 0:01:46]}  exf4 {[%clk 0:01:32]} 27. f3 {[%clk 0:01:42]}  Rg3 {[%clk 0:01:22]}
28. Nd2 {[%clk 0:01:31]}  Nxc2 {[%clk 0:01:09]} 29. Rc1 {[%clk 0:01:08]}  Ne3 {[%clk 0:01:10]} 30. Qf2 {[%clk 0:01:09]}  Rxg2 {[%clk 0:01:07]}
31. Rxg2 {[%clk 0:01:06]}  Rxg2 {[%clk 0:01:07]} 32. Qxh4 {[%clk 0:01:03]}  Qg7 {[%clk 0:01:03]} 33. Rxc7+ {[%clk 0:00:29]}  Qxc7 {[%clk 0:01:02]}
34. Qh8+ {[%clk 0:00:25]}  Qd8 {[%clk 0:01:01]} 35. Qe5 {[%clk 0:00:20]}  Rxd2 {[%clk 0:00:42]} 36. Qc3+ {[%clk 0:00:20]}  Kb8 {[%clk 0:00:40]}
37. Qxd2 {[%clk 0:00:20]}  Qd5 {[%clk 0:00:39]} 38. Qe2 {[%clk 0:00:15]}  Qd4 {[%clk 0:00:38]} 39. Kh2 {[%clk 0:00:15]}  Qxa4 {[%clk 0:00:39]}
40. Qb2 {[%clk 0:00:11]}  Qxb5 {[%clk 0:00:37]} 41. Qh8+ {[%clk 0:00:11]}  Kc7 {[%clk 0:00:36]} 42. Qg7+ {[%clk 0:00:12]}  Qd7 {[%clk 0:00:37]}
43. Qe5+ {[%clk 0:00:13]}  Qd6 {[%clk 0:00:38]} 44. Qa5+ {[%clk 0:00:13]}  Kb8 {[%clk 0:00:38]} 45. h4 {[%clk 0:00:09]}  a6 {[%clk 0:00:39]}
46. Qc3 {[%clk 0:00:09]}  Qg6 {[%clk 0:00:33]} 47. Qe5+ {[%clk 0:00:05]}  Ka8 {[%clk 0:00:33]} 48. Qh8+ {[%clk 0:00:06]}  Ka7 {[%clk 0:00:30]}
49. Qd4+ {[%clk 0:00:07]}  Qb6 {[%clk 0:00:31]} 50. Qxf4 {[%clk 0:00:08]}  Qb2+ {[%clk 0:00:32]} 0-1